Workbook

Sheet 表 (Excel提出用)
B2: 特定給食施設栄養管理報告書（老人福祉施設等） | T2: （ | V2: 令 | X2: 和 | AB2: 年 | AF2: 月 | AH2: 分 | AJ2: )
B3: 施設名 | N3: 設置者（職・氏名）
B4: 郵便番号 所在地 | N4: 給食責任者（職・氏名）
B5: 電話番号 FAX番号 | N5: 作成者（職・氏名）
B6: e-mail | N6: 連絡先電話番号
B8: 【施設種別】 | N8: 委託業者 | P8: 名 称
P9: 代表者
P10: 所在地
B11: 給食従事者数（人） | F11: 施 設 | J11: 委託業者 | P11: 電話番号
F12: 常 勤 | H12: 常勤以外 | J12: 常 勤 | L12: 常勤以外 | N12: 【給食管理等について検討する会議】 | AD12: （ | AH12: 回/年）
C13: 管理栄養士 | N13: 構成職種 | P13: 施設
C14: 栄養士
C15: 調理師 | P15: 委託 業者
C16: 調理員 | T16: 朝食 | W16: 昼食 | Z16: 夕食 | AC16: 間食 | AF16: その他 | AI16: 合計
C17: その他 | N17: 食数 | AI17: =SUM(T17:AF17) -> 0
C18: 合 計 | F18: =SUM(F13:F17) -> 0 | H18: =SUM(H13:H17) -> 0 | J18: =SUM(J13:J17) -> 0 | L18: =SUM(L13:L17) -> 0 | N18: 食材料費（円/人） | AI18: =SUM(T18:AF18) -> 0
B19: 【施設外調理】 | H19: （ | M19: ） | N19: 身体活動レベル・年齢区分・性別人数 | P19: 身体活動 レベル | W19: 18～29歳 | Z19: 30～49歳 | AC19: 50～64歳 | AF19: 65～74歳 | AI19: 75歳以上
B20: 【給食利用者の把握】 | H20: （ | J20: 年 | L20: 月現在） | P20: Ⅰ | T20: 男性
B21: 身体の状況 | H21: 献立への配慮 | T21: 女性
B22: １.体格 | D22: 肥満 | G22: ％ | I22: （ | M22: ） | P22: Ⅱ | T22: 男性
D23: やせ | G23: ％ | I23: （ | M23: ） | T23: 女性 | AO23: 献立表 | AP23: FALSE | AS23: 【構成職種】
B24: ２.高血圧 | G24: ％ | I24: （ | M24: ） | P24: Ⅲ | T24: 男性 | AO24: 展示 | AP24: FALSE | AS24: 施設 | AT24: 施設長 | AU24: FALSE
B25: ３.脂質異常症 | G25: ％ | I25: （ | M25: ） | T25: 女性 | AO25: 展示（実物） | AP25: FALSE | AT25: 管理栄養士 | AU25: FALSE
B26: ４.高血糖 | G26: ％ | I26: （ | M26: ） | P26: 合 計 | W26: =SUM(W20:W25) -> 0 | Z26: =SUM(Z20:Z25) -> 0 | AC26: =SUM(AC20:AC25) -> 0 | AF26: =SUM(AF20:AF25) -> 0 | AI26: =SUM(AI20:AI25) -> 0 | AO26: 展示（写真） | AP26: FALSE | AT26: 栄養士 | AU26: FALSE
B27: 【食事の種類】 | L27: ( | AJ27: ） | AT27: 保健師 | AU27: FALSE
B28: 【献立の提示】 | I28: [ | N28: ( | V28: ) | AB28: ( | AJ28: )] | AT28: 看護師 | AU28: FALSE
B29: 【栄養成分表示】 | AE29: ( | AK29: ) | AM29: 【食事の種類】その他 | AN29: FALSE | AO29: 【栄養成分表示】 | AQ29: 【喫食調査】 | AT29: 介護支援専門員 | AU29: FALSE
B30: 【喫食調査】 | K30: [ | R30: ( | W30: )] | AD30: ( | AK30: ) | AM30: 【献立の掲示】その他 | AN30: FALSE | AO30: エネルギー | AP30: FALSE | AQ30: 嗜好調査 | AR30: FALSE | AT30: 事務職 | AU30: FALSE
B31: 【栄養情報の提供】 | AC31: ( | AK31: ) | AM31: 【集団指導】内容 その他 | AN31: FALSE | AO31: たんぱく質 | AP31: FALSE | AQ31: アンケート | AR31: FALSE | AT31: 調理師(員) | AU31: FALSE
B32: 【栄養マネジメント強化加算】 | H32: 【経口移行加算】 | N32: 【経口維持加算】 | Z32: 【療養食加算】 | AM32: 【集団指導】方法 その他 | AN32: FALSE | AO32: 脂質 | AP32: FALSE | AQ32: その他 | AR32: FALSE | AT32: その他 | AU32: FALSE
B33: 栄養指導 | C33: 個別指導 | E33: 内容 | G33: 集団指導 | K33: 内容 | P33: ( | AG33: ( | AK33: ) | AO33: 炭水化物 | AP33: FALSE | AQ33: 残食調査 | AR33: FALSE | AS33: 委託業者 | AT33: 管理栄養士 | AU33: FALSE
D34: 人 | H34: 回 | J34: 人 | K34: 方法 | W34: ( | AK34: ) | AO34: 食塩相当量 | AP34: FALSE | AT34: 栄養士 | AU34: FALSE
B35: 【非常時危機管理対策】 | G35: 食中毒マニュアルの整備 | T35: 災害時マニュアルの整備 | AO35: その他 | AP35: FALSE | AT35: 調理師(員) | AU35: FALSE
B36: （食関連） | G36: 食品等の備蓄 | M36: （ | Q36: 日分） | T36: 施設間連携 | AT36: 事務職 | AU36: FALSE
B37: 【栄養管理における課題】 | N37: 【課題に対する改善策、工夫事項】 | AO37: 【栄養情報の提供】 | AT37: その他 | AU37: FALSE
AO38: ポスター | AP38: FALSE
AK39: （Ｒ３.３） | AO39: 卓上メモ | AP39: FALSE
AO40: 一口メモ | AP40: FALSE
AO41: ポップ | AP41: FALSE
AO42: その他 | AP42: FALSE

Sheet 裏 (Excel提出用)
B2: ※1 | C2: 男性 | F2: 歳 | I2: 女性 | L2: 歳 | N2: 食品群 | T2: 目標量 （ｇ） | W2: 給与量 （ｇ）
B3: ※2 | C3: 1人[ | H3: ・( | K3: )]当たり | N3: 穀類 | P3: 米
B4: ※3 | C4: 下記以外に食事基準の設定がある食事 | P4: パ ン 類
I5: （ | K5: ）種類 | P5: め ん 類
P6: その他の穀類
B7: 【基準設定】 | H7: （ | J7: 年 | L7: 月 | M7: ） | N7: いも及び でん粉類 | P7: い も
B8: 【栄養価計算の基準】 | P8: いも加工品 | AB8: 【設定回数】
B9: 栄養素等 | F9: （単位） | H9: 給与栄養目標量 | K9: 給与栄養量 | N9: 砂糖及び甘味類 | AB9: 朝食 | AC9: FALSE | AD9: =IF(AC9=TRUE,1,"") -> 
B10: エネルギー | F10: （ｋｃａｌ） | N10: 豆類 | P10: 大豆製品 | AB10: 昼食 | AC10: FALSE | AD10: =IF(AC10=TRUE,1,"") -> 
P11: 大豆、その他の豆類 | AB11: 夕食 | AC11: FALSE
B12: たんぱく質 | F12: （ｇ） | N12: 種 実 類 | AB12: 計 | AD12: =SUM(AD9:AD11) -> 0
N13: 野菜類 | P13: 緑黄色野菜
B14: 脂 質 | F14: （ｇ） | P14: その他の野菜
P15: 野菜漬物
B16: カルシウム | F16: （ｍｇ） | N16: 果実類 | P16: 果 実
P17: 果実加工品
B18: 鉄 | F18: （ｍｇ） | N18: きのこ類
N19: 藻 類
B20: ビタミンＡ （レチノール活性当量） | F20: （μｇＲＡＥ） | N20: 魚介類 | P20: 魚介類（生）
P21: 干物、塩蔵、缶詰
B22: ビタミンＢ1 | F22: （ｍｇ） | P22: 練 製 品
N23: 肉類 | P23: 肉類（生）
B24: ビタミンＢ2 | F24: （ｍｇ） | P24: 肉加工品
N25: 卵 類
B26: ビタミンＣ | F26: （ｍｇ） | N26: 乳類 | P26: 牛 乳
P27: 乳 製 品
B28: 食物繊維 | F28: （ｇ） | N28: 油脂類 | P28: 植 物 性
P29: 動 物 性
B30: 食塩相当量 | F30: （ｇ） | N30: 調味料 及び 香辛料類 | P30: 食 塩
P31: しょうゆ
B32: エネルギー 産生栄養素 バランス （％エネルギー） | E32: たんぱく質 | H32: =IF(H12=0,"",H12*4/H10) ->  | K32: =IF(K12=0,"",K12*4/K10) ->  | P32: み そ
E33: 脂 質 | H33: =IF(H14=0,"",H14*9/H10) ->  | K33: =IF(K14=0,"",K14*9/K10) ->  | P33: その他の調味料
E34: 炭水化物 | H34: =IF(H10=0,"",(H10-(H12*4+H14*9))/H10) ->  | K34: =IF(K10=0,"",(K10-(K12*4+K14*9))/K10) ->  | N34: 調理済み流通食品類
N36: 合 計 | T36: =SUM(T3:T35) -> 0 | W36: =SUM(W3:W35) -> 0
B37: 上記の食種における栄養補助食品等の使用状況
B39: 栄養補助食品等の名称 | K39: 栄養素名 | O39: 使用回数 | S39: 使用量 | W39: 給与量(単位)
O40: ( | Q40: )回/ | S40: ( | U40: )g/回 | W40: ( | Y40: )/回
O41: ( | Q41: )回/ | S41: ( | U41: )g/回 | W41: ( | Y41: )/回
O42: ( | Q42: )回/ | S42: ( | U42: )g/回 | W42: ( | Y42: )/回

Sheet 保健所事務処理シート (hidden)
D1: 給食従事者数【施設側】 | N1: 給食従事者数【委託側：院外調理は全て空欄】 | X1: 保健衛生統計用 | AI1: 運営形態 | AJ1: 施設外調理 | AK1: 会議 | AL1: 給食回数 | AM1: 食数 | AS1: 給食材料費 | AW1: 利用者の把握 | AZ1: 献立提示 | BA1: 栄養成分表示 | BH1: 喫食調査 | BM1: 栄養情報提供 | BS1: 加算関係 | BW1: 栄養指導 | BZ1: 非常時危機管理対策 | CE1: （裏面） | CG1: 給 与 栄 養 目 標 量 及 び 給 与 栄 養 給 与 量 | DC1: エ ネ ル ギ ー 比 率 | DI1: 食 品 構 成 | FW1: 補助食品
C2: 施設種別 | D2: 管理栄養士 | F2: 栄養士 | H2: 調理師 | J2: 調理員 | L2: その他 | N2: 管理栄養士 | P2: 栄養士 | R2: 調理師 | T2: 調理員 | V2: その他 | X2: 管栄(常) | Y2: 栄(常) | Z2: 調理師(常＋非常) | AA2: 調理員(常＋非常) | AB2: 事務職(常＋非常) | AC2: 施設調理師 | AD2: 施設調理員 | AE2: 施設事務 | AF2: 委託調理師2 | AG2: 委託調理員3 | AH2: 委託事務4 | AP2: 入力不要 | AQ2: 入力不要 | AR2: 入力不要 | BA2: 成分表示 | BB2: 表示項目 | BH2: 嗜好調査 | BI2: アンケート | BJ2: その他 | BK2: 残食調査 | BM2: 栄養情報提供 | BN2: 提供方法 | BW2: 個別指導 | BX2: 集団指導 | BZ2: マニュアル | CB2: 備蓄 | CD2: 施設間連携 | CE2: 設定回数 | CF2: 栄養価の基準 | CG2: 目標量 | CR2: 給与 | DC2: 目標 | DF2: 給与 | DI2: 目標 | EO2: 入力不要 | EP2: 給与 | FV2: 入力不要
C3: １：老人福祉 ２：社会福祉 ３：その他（有料老人等） | D3: 実数入力 （０も入力） | X3: 入力不要 | Y3: 入力不要 | Z3: 入力不要 | AA3: 入力不要 | AB3: 入力不要 | AC3: 入力不要 | AD3: 入力不要 | AE3: 入力不要 | AF3: 入力不要 | AG3: 入力不要 | AH3: 入力不要 | AI3: １：直営 ２：委託 | AJ3: １：有 ２：無 | AK3: １：有 ２：無 | AL3: １：1回 ２：２回 ３：３回 | AM3: 実数入力 （０も入れる） 提供なし：「０」 未記入：空欄 | AQ3: １日あたり １：100食未満 ２：100食以上 ３：200食以上 ４：300食以上 | AR3: １日あたり １：100食未満 ２：100食以上 ３：300食以上 ４：500食以上 | AS3: 実数入力 （０も入れる） 提供なし：「０」 未記入：空欄 | AV3: 入力不要 | AW3: １：有 ２：無 | AX3: １：有 ２：無 | AY3: 入力不要 １：身体状況のみ ２：身体活動レベルのみ ３：両方 ４：どちらも無 | AZ3: １：有 ２：無 | BA3: １：有 ２：無 | BB3: 有れば１ | BC3: 有れば１ | BD3: 有れば１ | BE3: 有れば１ | BF3: 有れば１ | BG3: 有れば自由記述 | BH3: １：有 ２：無 | BI3: １：有 ２：無 | BJ3: 有れば自由記述 | BK3: １：有 ２：無 | BL3: 入力不要 １：嗜好調査のみ ２：残食調査のみ ３：両方 ４：どちらも無 | BM3: １：有 ２：無 | BN3: 有れば１ | BO3: 有れば１ | BP3: 有れば１ | BQ3: 有れば１ | BR3: 有れば１ | BS3: １：有 ２：無 | BT3: １：有 ２：無 | BU3: １：Ⅰ ２：Ⅰ・Ⅱ ３：無 | BV3: １：有 ２：無 | BW3: 指導人数 | BX3: 実施回数 | BY3: 指導人数 | BZ3: １：有 ２：無 | CA3: １：有 ２：無 | CB3: １：有 ２：無 | CC3: 備蓄日数 | CD3: １：有 ２：無 | CE3: １：３食設定 ２：それ以外 | CF3: １：八訂 ２：七訂 | CG3: 設定回数が３食(間食有の場合は間食含む)の場合に入力 | DI3: 設定回数が３食の場合のみ入力 空白や－には何も入力しない | FW3: １：有 ２：無
A4: 施設番号 | B4: 施設名 | C4: 施設種別 | D4: 施管栄（常） | E4: 施管栄（非） | F4: 施栄（常） | G4: 施栄（非） | H4: 施調理師（常） | I4: 施調理師（非） | J4: 施調理員（常） | K4: 施調理員（非） | L4: 施事務（常） | M4: 施事務（非） | N4: 委管栄（常） | O4: 委管栄（非） | P4: 委栄（常） | Q4: 委栄（非） | R4: 委調理師（常） | S4: 委調理師（非） | T4: 委調理員（常） | U4: 委調理員（非） | V4: 委事務（常） | W4: 委事務（非） | X4: 管栄合計 | Y4: 栄合計 | Z4: 調理師合計 | AA4: 調理員合計 | AB4: 事務合計 | AC4: 施設調理師 | AD4: 施設調理員 | AE4: 施設事務 | AF4: 委託調理師 | AG4: 委託調理員 | AH4: 委託事務 | AI4: 運営形態 | AJ4: 施設外調理 | AK4: 会議 | AL4: 給食回数 | AM4: 朝食 | AN4: 昼食 | AO4: 夕食 | AP4: 合計 | AQ4: まとめ用規模 | AR4: 統計用規模 | AS4: 材料費（朝） | AT4: 材料費（昼） | AU4: 材料費（夕） | AV4: 材料費合計 | AW4: 身体状況 | AX4: 身体活動レベル | AY4: 把握状況 | AZ4: 提示 | BA4: 成分表示 | BB4: 表示E | BC4: 表示P | BD4: 表示F | BE4: 表示C | BF4: 表示Nacl | BG4: その他 | BH4: 嗜好 | BI4: アンケート | BJ4: その他 | BK4: 残食 | BL4: 喫食調査状況 | BM4: 情報提供 | BN4: ポスター | BO4: 卓上メモ | BP4: 一口メモ | BQ4: ポップ | BR4: その他 | BS4: 強化加算 | BT4: 経口移行 | BU4: 経口維持 | BV4: 療養食 | BW4: 個別指導 | BX4: 集団（回） | BY4: 集団（人） | BZ4: 食中毒 | CA4: 災害時 | CB4: 備蓄 | CC4: 備蓄日数 | CD4: 施設間連携 | CE4: 設定回数 | CF4: 栄養価基準 | CG4: エネルギー | CH4: たんぱく質 | CI4: 脂質 | CJ4: カルシウム | CK4: 鉄 | CL4: ビタミンA | CM4: ビタミンB1 | CN4: ビタミンB2 | CO4: ビタミンC | CP4: 食物繊維 | CQ4: 食塩相当量 | CR4: エネルギー | CS4: たんぱく質 | CT4: 脂質 | CU4: カルシウム | CV4: 鉄 | CW4: ビタミンA | CX4: ビタミンB1 | CY4: ビタミンB2 | CZ4: ビタミンC | DA4: 食物繊維 | DB4: 食塩相当量 | DC4: た質Ｅ比率 | DD4: 脂肪Ｅ比率 | DE4: 炭化Ｅ比率 | DF4: た質Ｅ比率13 | DG4: 脂肪Ｅ比率14 | DH4: 炭化Ｅ比率15 | DI4: 米 | DJ4: パン類 | DK4: めん類 | DL4: その他穀類 | DM4: いも類 | DN4: いも加工品 | DO4: 砂糖甘味類 | DP4: 大豆製品 | DQ4: その他豆類 | DR4: 種実類 | DS4: 緑黄色野菜 | DT4: その他野菜 | DU4: 野菜漬物 | DV4: 果実類 | DW4: 果実加工品 | DX4: きのこ類 | DY4: 藻類 | DZ4: 魚介類(生) | EA4: 干物、缶詰 | EB4: 練製品 | EC4: 肉類（生） | ED4: 肉加工品 | EE4: 卵類 | EF4: 牛乳 | EG4: 乳製品 | EH4: 植物性油脂 | EI4: 動物性油脂 | EJ4: 食塩 | EK4: しょうゆ | EL4: みそ | EM4: 調味料 | EN4: 調理済食品 | EO4: 合計 | EP4: 米 | EQ4: パン類 | ER4: めん類 | ES4: その他穀類 | ET4: いも類 | EU4: いも加工品 | EV4: 砂糖甘味類 | EW4: 大豆製品 | EX4: その他豆類 | EY4: 種実類 | EZ4: 緑黄色野菜 | FA4: その他野菜 | FB4: 野菜漬物 | FC4: 果実類 | FD4: 果実加工品 | FE4: きのこ類 | FF4: 藻類 | FG4: 魚介類(生) | FH4: 干物、缶詰 | FI4: 練製品 | FJ4: 肉類（生） | FK4: 肉加工品 | FL4: 卵類 | FM4: 牛乳 | FN4: 乳製品 | FO4: 植物性油脂 | FP4: 動物性油脂 | FQ4: 食塩 | FR4: しょうゆ | FS4: みそ | FT4: 調味料 | FU4: 調理済食品 | FV4: 合計 | FW4: 補助食品
B5: ='表 (Excel提出用)'!D3 -> 0 | C5: =IF('表 (Excel提出用)'!E8="","",IF('表 (Excel提出用)'!E8="1.老人福祉施設（特別養護老人ホーム除く）",1,IF('表 (Excel提出用)'!E8="2.社会福祉施設（入所・通所）",2,IF('表 (Excel提出用)'!E8="3.有料老人ホーム",3)))) ->  | D5: ='表 (Excel提出用)'!F13 -> 0 | E5: ='表 (Excel提出用)'!H13 -> 0 | F5: ='表 (Excel提出用)'!F14 -> 0 | G5: ='表 (Excel提出用)'!H14 -> 0 | H5: ='表 (Excel提出用)'!F15 -> 0 | I5: ='表 (Excel提出用)'!H15 -> 0 | J5: ='表 (Excel提出用)'!F16 -> 0 | K5: ='表 (Excel提出用)'!H16 -> 0 | L5: ='表 (Excel提出用)'!F17 -> 0 | M5: ='表 (Excel提出用)'!H17 -> 0 | N5: ='表 (Excel提出用)'!J13 -> 0 | O5: ='表 (Excel提出用)'!L13 -> 0 | P5: ='表 (Excel提出用)'!J14 -> 0 | Q5: ='表 (Excel提出用)'!L14 -> 0 | R5: ='表 (Excel提出用)'!J15 -> 0 | S5: ='表 (Excel提出用)'!L15 -> 0 | T5: ='表 (Excel提出用)'!J16 -> 0 | U5: ='表 (Excel提出用)'!L16 -> 0 | V5: ='表 (Excel提出用)'!J17 -> 0 | W5: ='表 (Excel提出用)'!L17 -> 0 | X5: =IF(AND(D5="",N5=""),"",D5+N5) -> 0 | Y5: =IF(AND(F5="",P5=""),"",F5+P5) -> 0 | Z5: =IF(AND(H5="",I5="",R5="",S5=""),"",SUM(H5:I5,R5:S5)) -> 0 | AA5: =IF(AND(J5="",K5="",T5="",U5=""),"",SUM(J5:K5,T5:U5)) -> 0 | AB5: =IF(AND(L5="",M5="",V5="",W5=""),"",SUM(L5:M5,V5:W5)) -> 0 | AC5: =SUM(H5:I5) -> 0 | AD5: =SUM(J5:K5) -> 0 | AE5: =SUM(L5:M5) -> 0 | AF5: =SUM(R5:S5) -> 0 | AG5: =SUM(T5:U5) -> 0 | AH5: =SUM(V5:W5) -> 0 | AI5: =IF('表 (Excel提出用)'!T8<>"","2","1") -> 1 | AJ5: =IF('表 (Excel提出用)'!F19="","",IF('表 (Excel提出用)'!F19="有",1,IF('表 (Excel提出用)'!F19="無",2))) ->  | AK5: =IF('表 (Excel提出用)'!AB12="","",IF('表 (Excel提出用)'!AB12="有",1,IF('表 (Excel提出用)'!AB12="無",2))) ->  | AL5: =IF(AND(AM5="",AN5="",AO5=""),"",COUNTIFS(AM5:AO5,">0")) ->  | AM5: =IF('表 (Excel提出用)'!T17="","",'表 (Excel提出用)'!T17) ->  | AN5: =IF('表 (Excel提出用)'!W17="","",'表 (Excel提出用)'!W17) ->  | AO5: =IF('表 (Excel提出用)'!Z17="","",'表 (Excel提出用)'!Z17) ->  | AP5: =IF(AND(AM5="",AN5="",AO5=""),"",SUM(AM5:AO5)) ->  | AQ5: =IF(OR(AL5=999,AL5="",AP5=""),"",IF(AP5>299,4,IF(AP5>199,3,IF(AP5>99,2,1)))) ->  | AR5: =IF(AP5="","",IF(AP5>499,4,IF(AP5>299,3,IF(AP5>99,2,1)))) ->  | AS5: =IF('表 (Excel提出用)'!T18="","",'表 (Excel提出用)'!T18) ->  | AT5: =IF('表 (Excel提出用)'!W18="","",'表 (Excel提出用)'!W18) ->  | AU5: =IF('表 (Excel提出用)'!Z18="","",'表 (Excel提出用)'!Z18) ->  | AV5: =IF(AND(AS5="",AT5="",AU5=""),"",SUM(AS5:AU5)) ->  | AW5: =IF('表 (Excel提出用)'!G20="","",IF('表 (Excel提出用)'!G20="有",1,IF('表 (Excel提出用)'!G20="無",2))) ->  | AX5: =IF('表 (Excel提出用)'!G20="","",IF(AND('表 (Excel提出用)'!W20="",'表 (Excel提出用)'!Z20="",'表 (Excel提出用)'!AC20="",'表 (Excel提出用)'!AF20="",'表 (Excel提出用)'!AI20="",'表 (Excel提出用)'!W21="",'表 (Excel提出用)'!Z21="",'表 (Excel提出用)'!AC21="",'表 (Excel提出用)'!AF21="",'表 (Excel提出用)'!AI21="",'表 (Excel提出用)'!W22="",'表 (Excel提出用)'!Z22="",'表 (Excel提出用)'!AC22="",'表 (Excel提出用)'!AF22="",'表 (Excel提出用)'!AI22="",'表 (Excel提出用)'!W23="",'表 (Excel提出用)'!Z23="",'表 (Excel提出用)'!AC23="",'表 (Excel提出用)'!AF23="",'表 (Excel提出用)'!AI23="",'表 (Excel提出用)'!W24="",'表 (Excel提出用)'!Z24="",'表 (Excel提出用)'!AC24="",'表 (Excel提出用)'!AF24="",'表 (Excel提出用)'!AI24="",'表 (Excel提出用)'!W25="",'表 (Excel提出用)'!Z25="",'表 (Excel提出用)'!AC25="",'表 (Excel提出用)'!AF25="",'表 (Excel提出用)'!AI25=""),2,1)) ->  | AY5: =IF(OR(AW5="",AX5=""),"",IF(AND(AW5=999,AX5=999),999,IF(AND(AW5=1,AX5=2),1,IF(AND(AW5=2,AX5=1),2,IF(AND(AW5=1,AX5=1),3,4))))) ->  | AZ5: =IF('表 (Excel提出用)'!F28="","",IF('表 (Excel提出用)'!F28="有",1,IF('表 (Excel提出用)'!F28="無",2))) ->  | BA5: =IF('表 (Excel提出用)'!F29="","",IF('表 (Excel提出用)'!F29="有",1,IF('表 (Excel提出用)'!F29="無",2))) ->  | BB5: =IF('表 (Excel提出用)'!AP30=TRUE,1,"") ->  | BC5: =IF('表 (Excel提出用)'!AP31=TRUE,1,"") ->  | BD5: =IF('表 (Excel提出用)'!AP32=TRUE,1,"") ->  | BE5: =IF('表 (Excel提出用)'!AP33=TRUE,1,"") ->  | BF5: =IF('表 (Excel提出用)'!AP34=TRUE,1,"") ->  | BG5: =IF('表 (Excel提出用)'!AF29="","",'表 (Excel提出用)'!AF29) ->  | BH5: =IF('表 (Excel提出用)'!F30="","",IF('表 (Excel提出用)'!AR30=TRUE,1,2)) ->  | BI5: =IF('表 (Excel提出用)'!F30="","",IF('表 (Excel提出用)'!AR31=TRUE,1,2)) ->  | BJ5: =IF('表 (Excel提出用)'!S30="","",'表 (Excel提出用)'!S30) ->  | BK5: =IF('表 (Excel提出用)'!F30="","",IF('表 (Excel提出用)'!AR33=TRUE,1,2)) ->  | BL5: =IF(OR(BH5="",BK5=""),"",IF(AND(BH5=999,BK5=999),999,IF(AND(BH5=1,BK5=2),1,IF(AND(BH5=2,BK5=1),2,IF(AND(BH5=1,BK5=1),3,4))))) ->  | BM5: =IF('表 (Excel提出用)'!F31="","",IF('表 (Excel提出用)'!F31="有",1,IF('表 (Excel提出用)'!F31="無",2))) ->  | BN5: =IF('表 (Excel提出用)'!AP38=TRUE,1,"") ->  | BO5: =IF('表 (Excel提出用)'!AP39=TRUE,1,"") ->  | BP5: =IF('表 (Excel提出用)'!AP40=TRUE,1,"") ->  | BQ5: =IF('表 (Excel提出用)'!AP41=TRUE,1,"") ->  | BR5: =IF('表 (Excel提出用)'!AP42=TRUE,1,"") ->  | BS5: =IF('表 (Excel提出用)'!F32="","",IF('表 (Excel提出用)'!F32="有",1,IF('表 (Excel提出用)'!F32="無",2))) ->  | BT5: =IF('表 (Excel提出用)'!L32="","",IF('表 (Excel提出用)'!L32="有",1,IF('表 (Excel提出用)'!L32="無",2))) ->  | BU5: =IF('表 (Excel提出用)'!V32="","",IF('表 (Excel提出用)'!V32="Ⅰ",1,IF('表 (Excel提出用)'!V32="Ⅰ・Ⅱ",2,IF('表 (Excel提出用)'!V32="無",3)))) ->  | BV5: =IF('表 (Excel提出用)'!AH32="","",IF('表 (Excel提出用)'!AH32="有",1,IF('表 (Excel提出用)'!AH32="無",2))) ->  | BW5: =IF('表 (Excel提出用)'!C34="","",'表 (Excel提出用)'!C34) ->  | BX5: =IF('表 (Excel提出用)'!G34="","",'表 (Excel提出用)'!G34) ->  | BY5: =IF('表 (Excel提出用)'!I34="","",'表 (Excel提出用)'!I34) ->  | BZ5: =IF('表 (Excel提出用)'!M35="","",IF('表 (Excel提出用)'!M35="有",1,IF('表 (Excel提出用)'!M35="無",2))) ->  | CA5: =IF('表 (Excel提出用)'!AF35="","",IF('表 (Excel提出用)'!AF35="有",1,IF('表 (Excel提出用)'!AF35="無",2))) ->  | CB5: =IF('表 (Excel提出用)'!K36="","",IF('表 (Excel提出用)'!K36="有",1,IF('表 (Excel提出用)'!K36="無",2))) ->  | CC5: =IF(AND('表 (Excel提出用)'!K36="",'表 (Excel提出用)'!N36=""),"",IF(AND('表 (Excel提出用)'!K36="有",'表 (Excel提出用)'!N36=""),"",'表 (Excel提出用)'!N36)) ->  | CD5: =IF('表 (Excel提出用)'!AF36="","",IF('表 (Excel提出用)'!AF36="有",1,IF('表 (Excel提出用)'!AF36="無",2))) ->  | CE5: =IF('裏 (Excel提出用)'!AD12=3,1,2) -> 2 | CF5: =IF('裏 (Excel提出用)'!H8="","",IF('裏 (Excel提出用)'!H8="八訂",1,IF('裏 (Excel提出用)'!H8="七訂",2))) ->  | CG5: =IF('裏 (Excel提出用)'!H10="","",'裏 (Excel提出用)'!H10) ->  | CH5: =IF('裏 (Excel提出用)'!H12="","",'裏 (Excel提出用)'!H12) ->  | CI5: =IF('裏 (Excel提出用)'!H14="","",'裏 (Excel提出用)'!H14) ->  | CJ5: =IF('裏 (Excel提出用)'!H16="","",'裏 (Excel提出用)'!H16) ->  | CK5: =IF('裏 (Excel提出用)'!H18="","",'裏 (Excel提出用)'!H18) ->  | CL5: =IF('裏 (Excel提出用)'!H20="","",'裏 (Excel提出用)'!H20) ->  | CM5: =IF('裏 (Excel提出用)'!H22="","",'裏 (Excel提出用)'!H22) ->  | CN5: =IF('裏 (Excel提出用)'!H24="","",'裏 (Excel提出用)'!H24) ->  | CO5: =IF('裏 (Excel提出用)'!H26="","",'裏 (Excel提出用)'!H26) ->  | CP5: =IF('裏 (Excel提出用)'!H28="","",'裏 (Excel提出用)'!H28) ->  | CQ5: =IF('裏 (Excel提出用)'!H30="","",'裏 (Excel提出用)'!H30) ->  | CR5: =IF('裏 (Excel提出用)'!K10="","",'裏 (Excel提出用)'!K10) ->  | CS5: =IF('裏 (Excel提出用)'!K12="","",'裏 (Excel提出用)'!K12) ->  | CT5: =IF('裏 (Excel提出用)'!K14="","",'裏 (Excel提出用)'!K14) ->  | CU5: =IF('裏 (Excel提出用)'!K16="","",'裏 (Excel提出用)'!K16) ->  | CV5: =IF('裏 (Excel提出用)'!K18="","",'裏 (Excel提出用)'!K18) ->  | CW5: =IF('裏 (Excel提出用)'!K20="","",'裏 (Excel提出用)'!K20) ->  | CX5: =IF('裏 (Excel提出用)'!K22="","",'裏 (Excel提出用)'!K22) ->  | CY5: =IF('裏 (Excel提出用)'!K24="","",'裏 (Excel提出用)'!K24) ->  | CZ5: =IF('裏 (Excel提出用)'!K26="","",'裏 (Excel提出用)'!K26) ->  | DA5: =IF('裏 (Excel提出用)'!K28="","",'裏 (Excel提出用)'!K28) ->  | DB5: =IF('裏 (Excel提出用)'!K30="","",'裏 (Excel提出用)'!K30) ->  | DC5: ='裏 (Excel提出用)'!H32 ->  | DD5: ='裏 (Excel提出用)'!H33 ->  | DE5: ='裏 (Excel提出用)'!H34 ->  | DF5: ='裏 (Excel提出用)'!K32 ->  | DG5: ='裏 (Excel提出用)'!K33 ->  | DH5: ='裏 (Excel提出用)'!K34 ->  | DI5: =IF('裏 (Excel提出用)'!T3="","",'裏 (Excel提出用)'!T3) ->  | DJ5: =IF('裏 (Excel提出用)'!T4="","",'裏 (Excel提出用)'!T4) ->  | DK5: =IF('裏 (Excel提出用)'!T5="","",'裏 (Excel提出用)'!T5) ->  | DL5: =IF('裏 (Excel提出用)'!T6="","",'裏 (Excel提出用)'!T6) ->  | DM5: =IF('裏 (Excel提出用)'!T7="","",'裏 (Excel提出用)'!T7) ->  | DN5: =IF('裏 (Excel提出用)'!T8="","",'裏 (Excel提出用)'!T8) ->  | DO5: =IF('裏 (Excel提出用)'!T9="","",'裏 (Excel提出用)'!T9) ->  | DP5: =IF('裏 (Excel提出用)'!T10="","",'裏 (Excel提出用)'!T10) ->  | DQ5: =IF('裏 (Excel提出用)'!T11="","",'裏 (Excel提出用)'!T11) ->  | DR5: =IF('裏 (Excel提出用)'!T12="","",'裏 (Excel提出用)'!T12) ->  | DS5: =IF('裏 (Excel提出用)'!T13="","",'裏 (Excel提出用)'!T13) ->  | DT5: =IF('裏 (Excel提出用)'!T14="","",'裏 (Excel提出用)'!T14) ->  | DU5: =IF('裏 (Excel提出用)'!T15="","",'裏 (Excel提出用)'!T15) ->  | DV5: =IF('裏 (Excel提出用)'!T16="","",'裏 (Excel提出用)'!T16) ->  | DW5: =IF('裏 (Excel提出用)'!T17="","",'裏 (Excel提出用)'!T17) ->  | DX5: =IF('裏 (Excel提出用)'!T18="","",'裏 (Excel提出用)'!T18) ->  | DY5: =IF('裏 (Excel提出用)'!T19="","",'裏 (Excel提出用)'!T19) ->  | DZ5: =IF('裏 (Excel提出用)'!T20="","",'裏 (Excel提出用)'!T20) ->  | EA5: =IF('裏 (Excel提出用)'!T21="","",'裏 (Excel提出用)'!T21) ->  | EB5: =IF('裏 (Excel提出用)'!T22="","",'裏 (Excel提出用)'!T22) ->  | EC5: =IF('裏 (Excel提出用)'!T23="","",'裏 (Excel提出用)'!T23) ->  | ED5: =IF('裏 (Excel提出用)'!T24="","",'裏 (Excel提出用)'!T24) ->  | EE5: =IF('裏 (Excel提出用)'!T25="","",'裏 (Excel提出用)'!T25) ->  | EF5: =IF('裏 (Excel提出用)'!T26="","",'裏 (Excel提出用)'!T26) ->  | EG5: =IF('裏 (Excel提出用)'!T27="","",'裏 (Excel提出用)'!T27) ->  | EH5: =IF('裏 (Excel提出用)'!T28="","",'裏 (Excel提出用)'!T28) ->  | EI5: =IF('裏 (Excel提出用)'!T29="","",'裏 (Excel提出用)'!T29) ->  | EJ5: =IF('裏 (Excel提出用)'!T30="","",'裏 (Excel提出用)'!T30) ->  | EK5: =IF('裏 (Excel提出用)'!T31="","",'裏 (Excel提出用)'!T31) ->  | EL5: =IF('裏 (Excel提出用)'!T32="","",'裏 (Excel提出用)'!T32) ->  | EM5: =IF('裏 (Excel提出用)'!T33="","",'裏 (Excel提出用)'!T33) ->  | EN5: =IF('裏 (Excel提出用)'!T34="","",'裏 (Excel提出用)'!T34) ->  | EO5: =IF(OR(CB5=2,CB5=999,CB5=""),"",SUM(DI5:EN5)) ->  | EP5: =IF('裏 (Excel提出用)'!W3="","",'裏 (Excel提出用)'!W3) ->  | EQ5: =IF('裏 (Excel提出用)'!W4="","",'裏 (Excel提出用)'!W4) ->  | ER5: =IF('裏 (Excel提出用)'!W5="","",'裏 (Excel提出用)'!W5) ->  | ES5: =IF('裏 (Excel提出用)'!W6="","",'裏 (Excel提出用)'!W6) ->  | ET5: =IF('裏 (Excel提出用)'!W7="","",'裏 (Excel提出用)'!W7) ->  | EU5: =IF('裏 (Excel提出用)'!W8="","",'裏 (Excel提出用)'!W8) ->  | EV5: =IF('裏 (Excel提出用)'!W9="","",'裏 (Excel提出用)'!W9) ->  | EW5: =IF('裏 (Excel提出用)'!W10="","",'裏 (Excel提出用)'!W10) ->  | EX5: =IF('裏 (Excel提出用)'!W11="","",'裏 (Excel提出用)'!W11) ->  | EY5: =IF('裏 (Excel提出用)'!W12="","",'裏 (Excel提出用)'!W12) ->  | EZ5: =IF('裏 (Excel提出用)'!W13="","",'裏 (Excel提出用)'!W13) ->  | FA5: =IF('裏 (Excel提出用)'!W14="","",'裏 (Excel提出用)'!W14) ->  | FB5: =IF('裏 (Excel提出用)'!W15="","",'裏 (Excel提出用)'!W15) ->  | FC5: =IF('裏 (Excel提出用)'!W16="","",'裏 (Excel提出用)'!W16) ->  | FD5: =IF('裏 (Excel提出用)'!W17="","",'裏 (Excel提出用)'!W17) ->  | FE5: =IF('裏 (Excel提出用)'!W18="","",'裏 (Excel提出用)'!W18) ->  | FF5: =IF('裏 (Excel提出用)'!W19="","",'裏 (Excel提出用)'!W19) ->  | FG5: =IF('裏 (Excel提出用)'!W20="","",'裏 (Excel提出用)'!W20) ->  | FH5: =IF('裏 (Excel提出用)'!W21="","",'裏 (Excel提出用)'!W21) ->  | FI5: =IF('裏 (Excel提出用)'!W22="","",'裏 (Excel提出用)'!W22) ->  | FJ5: =IF('裏 (Excel提出用)'!W23="","",'裏 (Excel提出用)'!W23) ->  | FK5: =IF('裏 (Excel提出用)'!W24="","",'裏 (Excel提出用)'!W24) ->  | FL5: =IF('裏 (Excel提出用)'!W25="","",'裏 (Excel提出用)'!W25) ->  | FM5: =IF('裏 (Excel提出用)'!W26="","",'裏 (Excel提出用)'!W26) ->  | FN5: =IF('裏 (Excel提出用)'!W27="","",'裏 (Excel提出用)'!W27) ->  | FO5: =IF('裏 (Excel提出用)'!W28="","",'裏 (Excel提出用)'!W28) ->  | FP5: =IF('裏 (Excel提出用)'!W29="","",'裏 (Excel提出用)'!W29) ->  | FQ5: =IF('裏 (Excel提出用)'!W30="","",'裏 (Excel提出用)'!W30) ->  | FR5: =IF('裏 (Excel提出用)'!W31="","",'裏 (Excel提出用)'!W31) ->  | FS5: =IF('裏 (Excel提出用)'!W32="","",'裏 (Excel提出用)'!W32) ->  | FT5: =IF('裏 (Excel提出用)'!W33="","",'裏 (Excel提出用)'!W33) ->  | FU5: =IF('裏 (Excel提出用)'!W34="","",'裏 (Excel提出用)'!W34) ->  | FV5: =IF(OR(CE5=2,CE5=999,CE5=""),"",SUM(EP5:FU5)) ->  | FW5: =IF(OR(COUNTIFS('裏 (Excel提出用)'!B40,""),COUNTIFS('裏 (Excel提出用)'!B40,"*なし*")),2,1) -> 2

Sheet 記入例 表 (Excel提出用)
A1: セルの説明 | D1: 【オレンジ】 | G1: 入力必須（入力すると白色に変わります） | R1: 【黄色】 | V1: 関数が入っているため、自動計算されます。
D2: 【グレー】 | G2: 条件に合致すると、オレンジに変わります。オレンジになれば、入力してください。
B3: （記入例）
B4: 特定給食施設栄養管理報告書（老人福祉施設等） | T4: （ | V4: 令 | X4: 和 | Z4: 3 | AB4: 年 | AD4: 11 | AF4: 月 | AH4: 分 | AJ4: )
B5: 施設名 | D5: 養護老人ホーム○○ | N5: 設置者（職・氏名） | X5: 理事長 ○○ ○○
B6: 郵便番号 所在地 | D6: 〒555-5555 大阪府大阪市阿倍野区○○町1-1-1 | N6: 給食責任者（職・氏名） | X6: 管理栄養士 □□ □□
B7: 電話番号 FAX番号 | D7: 06-0000-0000 | N7: 作成者（職・氏名） | X7: 管理栄養士 □□ □□
B8: e-mail | D8: xxx_xxx@abc.jp | N8: 連絡先電話番号 | X8: 06-0000-0001
B10: 【施設種別】 | E10: 1.老人福祉施設（特別養護老人ホーム除く） | N10: 委託業者 | P10: 名 称 | T10: 株式会社 ○○
P11: 代表者 | T11: ■■ ■■
P12: 所在地 | T12: 大阪市北区○○町1-2-3
B13: 給食従事者数（人） | F13: 施 設 | J13: 委託業者 | P13: 電話番号 | T13: 06-0000-1234
F14: 常 勤 | H14: 常勤以外 | J14: 常 勤 | L14: 常勤以外 | N14: 【給食管理等について検討する会議】 | AB14: 有 | AD14: （ | AE14: 12 | AH14: 回/年）
C15: 管理栄養士 | F15: 1 | H15: 0 | J15: 0 | L15: 0 | N15: 構成職種 | P15: 施設
C16: 栄養士 | F16: 0 | H16: 0 | J16: 1 | L16: 0
C17: 調理師 | F17: 0 | H17: 0 | J17: 2 | L17: 0 | P17: 委託 業者
C18: 調理員 | F18: 0 | H18: 0 | J18: 0 | L18: 7 | T18: 朝食 | W18: 昼食 | Z18: 夕食 | AC18: 間食 | AF18: その他 | AI18: 合計
C19: その他 | N19: 食数 | T19: 50 | W19: 50 | Z19: 50 | AC19: 0 | AI19: =SUM(T19:AF19) -> 150
C20: 合 計 | F20: =SUM(F15:F19) -> 1 | H20: =SUM(H15:H19) -> 0 | J20: =SUM(J15:J19) -> 3 | L20: =SUM(L15:L19) -> 7 | N20: 食材料費（円/人） | T20: 130 | W20: 240 | Z20: 290 | AC20: 0 | AI20: =SUM(T20:AF20) -> 660
B21: 【施設外調理】 | F21: 無 | H21: （ | M21: ） | N21: 身体活動レベル・年齢区分・性別人数 | P21: 身体活動 レベル | W21: 18～29歳 | Z21: 30～49歳 | AC21: 50～64歳 | AF21: 65～74歳 | AI21: 75歳以上
B22: 【給食利用者の把握】 | G22: 有 | H22: （ | I22: R3 | J22: 年 | K22: 11 | L22: 月現在） | P22: Ⅰ | T22: 男性 | W22: 0 | Z22: 0 | AC22: 0 | AF22: 10 | AI22: 15
B23: 身体の状況 | H23: 献立への配慮 | T23: 女性 | W23: 0 | Z23: 0 | AC23: 0 | AF23: 5 | AI23: 20
B24: １.体格 | D24: 肥満 | F24: 15 | G24: ％ | H24: 無 | I24: （ | M24: ） | P24: Ⅱ | T24: 男性 | W24: 0 | Z24: 0 | AC24: 0 | AF24: 0 | AI24: 0
D25: やせ | F25: 28 | G25: ％ | H25: 有 | I25: （ | J25: 補食の提案 | M25: ） | T25: 女性 | W25: 0 | Z25: 0 | AC25: 0 | AF25: 0 | AI25: 0
B26: ２.高血圧 | F26: 45 | G26: ％ | H26: 有 | I26: （ | J26: 塩分量の調節 | M26: ） | P26: Ⅲ | T26: 男性 | W26: 0 | Z26: 0 | AC26: 0 | AF26: 0 | AI26: 0
B27: ３.脂質異常症 | F27: 30 | G27: ％ | H27: 有 | I27: （ | J27: エネルギー調節 | M27: ） | T27: 女性 | W27: 0 | Z27: 0 | AC27: 0 | AF27: 0 | AI27: 0
B28: ４.高血糖 | F28: 10 | G28: ％ | H28: 有 | I28: （ | J28: 主食の調節 | M28: ） | P28: 合 計 | W28: =SUM(W22:W27) -> 0 | Z28: =SUM(Z22:Z27) -> 0 | AC28: =SUM(AC22:AC27) -> 0 | AF28: =SUM(AF22:AF27) -> 15 | AI28: =SUM(AI22:AI27) -> 35
B29: 【食事の種類】 | L29: ( | AJ29: ）
B30: 【献立の提示】 | F30: 有 | I30: [ | N30: ( | V30: ) | AB30: ( | AC30: 食事前の放送 | AJ30: )]
B31: 【栄養成分表示】 | F31: 有 | AE31: ( | AF31: カルシウム | AK31: ) | AN31: FALSE
B32: 【喫食調査】 | F32: 有 | K32: [ | R32: ( | W32: )] | AD32: ( | AK32: ) | AN32: TRUE
B33: 【栄養情報の提供】 | F33: 有 | AC33: ( | AD33: 給食だより | AK33: ) | AN33: TRUE
B34: 【栄養マネジメント強化加算】 | F34: 無 | H34: 【経口移行加算】 | L34: 無 | N34: 【経口維持加算】 | V34: 無 | Z34: 【療養食加算】 | AH34: 無 | AN34: FALSE
B35: 栄養指導 | C35: 個別指導 | E35: 内容 | G35: 集団指導 | K35: 内容 | P35: ( | AG35: ( | AK35: ) | AN35: TRUE
C36: 50 | D36: 人 | E36: 塩分制限 食欲不振等 | G36: 0 | H36: 回 | I36: 0 | J36: 人 | K36: 方法 | W36: ( | AK36: ) | AN36: FALSE
B37: 【非常時危機管理対策】 | G37: 食中毒マニュアルの整備 | M37: 有 | T37: 災害時マニュアルの整備 | AF37: 有 | AN37: FALSE
B38: （食関連） | G38: 食品等の備蓄 | K38: 有 | M38: （ | N38: 3 | Q38: 日分） | T38: 施設間連携 | AF38: 有
B39: 【栄養管理における課題】 | N39: 【課題に対する改善策、工夫事項】
B40: 献立以上の塩分量の摂取 | N40: 味にメリハリをつけた季節感のある献立の提案
AK41: （Ｒ３.３）

Sheet 記入例 裏 (Excel提出用)
A1: セルの説明 | D1: 【オレンジ】 | G1: 入力必須（入力すると白色に変わります） | R1: 【黄色】 | T1: 関数が入っているため、自動計算されます。
D2: 【グレー】 | G2: 条件に合致すると、オレンジに変わります。オレンジになれば、入力してください。
B3: （記入例）
B4: ※1 | C4: 男性 | E4: 76 | F4: 歳 | I4: 女性 | K4: 84 | L4: 歳 | N4: 食品群 | T4: 目標量 （ｇ） | W4: 給与量 （ｇ）
B5: ※2 | C5: 1人[ | H5: ・( | K5: )]当たり | N5: 穀類 | P5: 米 | T5: 170 | W5: 188
B6: ※3 | C6: 下記以外に食事基準の設定がある食事 | P6: パ ン 類 | T6: 35 | W6: 41
I7: （ | J7: 2 | K7: ）種類 | P7: め ん 類 | T7: 15 | W7: 6
P8: その他の穀類 | T8: 5 | W8: 3
B9: 【基準設定】 | H9: （ | I9: R3 | J9: 年 | K9: 3 | L9: 月 | M9: ） | N9: いも及び でん粉類 | P9: い も | T9: 30 | W9: 29
B10: 【栄養価計算の基準】 | H10: 八訂 | P10: いも加工品 | T10: 4 | W10: 1
B11: 栄養素等 | F11: （単位） | H11: 給与栄養目標量 | K11: 給与栄養量 | N11: 砂糖及び甘味類 | T11: 13 | W11: 6
B12: エネルギー | F12: （ｋｃａｌ） | H12: 1600 | K12: 1605 | N12: 豆類 | P12: 大豆製品 | T12: 45 | W12: 46
P13: 大豆、その他の豆類 | T13: 5 | W13: 5
B14: たんぱく質 | F14: （ｇ） | H14: 60 | K14: 60 | N14: 種 実 類 | T14: 1 | W14: 1
N15: 野菜類 | P15: 緑黄色野菜 | T15: 140 | W15: 145
B16: 脂 質 | F16: （ｇ） | H16: 37 | K16: 38 | P16: その他の野菜 | T16: 210 | W16: 202
P17: 野菜漬物 | T17: 5 | W17: 2
B18: カルシウム | F18: （ｍｇ） | H18: 600 | K18: 605 | N18: 果実類 | P18: 果 実 | T18: 60 | W18: 55
P19: 果実加工品 | T19: 30 | W19: 25
B20: 鉄 | F20: （ｍｇ） | H20: 7 | K20: 7 | N20: きのこ類 | T20: 11 | W20: 10
N21: 藻 類 | T21: 5 | W21: 5
B22: ビタミンＡ （レチノール活性当量） | F22: （μｇＲＡＥ） | H22: 650 | K22: 635 | N22: 魚介類 | P22: 魚介類（生） | T22: 50 | W22: 48
P23: 干物、塩蔵、缶詰 | T23: 3 | W23: 3
B24: ビタミンＢ1 | F24: （ｍｇ） | H24: 0.9 | K24: 0.9 | P24: 練 製 品 | T24: 8 | W24: 9
N25: 肉類 | P25: 肉類（生） | T25: 40 | W25: 47
B26: ビタミンＢ2 | F26: （ｍｇ） | H26: 1 | K26: 1 | P26: 肉加工品 | T26: 5 | W26: 2
N27: 卵 類 | T27: 30 | W27: 31
B28: ビタミンＣ | F28: （ｍｇ） | H28: 100 | K28: 95 | N28: 乳類 | P28: 牛 乳 | T28: 200 | W28: 203
P29: 乳 製 品 | T29: 11 | W29: 11
B30: 食物繊維 | F30: （ｇ） | H30: 25 | K30: 15 | N30: 油脂類 | P30: 植 物 性 | T30: 7 | W30: 3
P31: 動 物 性 | T31: 6 | W31: 1
B32: 食塩相当量 | F32: （ｇ） | H32: 7 | K32: 6.5 | N32: 調味料 及び 香辛料類 | P32: 食 塩 | T32: 1 | W32: 1
P33: しょうゆ | T33: 10 | W33: 14
B34: エネルギー 産生栄養素 バランス （％エネルギー） | E34: たんぱく質 | H34: =IF(H14=0,"",H14*4/H12) -> 0.15 | K34: =IF(K14=0,"",K14*4/K12) -> 0.1495327103 | P34: み そ | T34: 13 | W34: 8
E35: 脂 質 | H35: =IF(H16=0,"",H16*9/H12) -> 0.208125 | K35: =IF(K16=0,"",K16*9/K12) -> 0.2130841121 | P35: その他の調味料 | T35: 21 | W35: 39
E36: 炭水化物 | H36: =IF(H12=0,"",(H12-(H14*4+H16*9))/H12) -> 0.641875 | K36: =IF(K12=0,"",(K12-(K14*4+K16*9))/K12) -> 0.6373831776 | N36: 調理済み流通食品類 | T36: 20 | W36: 15
N38: 合 計 | T38: =SUM(T5:T37) -> 1209 | W38: =SUM(W5:W37) -> 1205
B39: 上記の食種における栄養補助食品等の使用状況
B41: 栄養補助食品等の名称 | K41: 栄養素名 | O41: 使用回数 | S41: 使用量 | W41: 給与量(単位)
B42: サプリ米 | K42: 鉄 | O42: ( | P42: 1 | Q42: )回/ | R42: 日 | S42: ( | T42: 0.3 | U42: )g/回 | W42: ( | X42: 1mg | Y42: )/回
B43: サプリ米 | K43: ビタミンB1 | O43: ( | P43: 1 | Q43: )回/ | R43: 日 | S43: ( | T43: 0.3 | U43: )g/回 | W43: ( | X43: 1.5mg | Y43: )/回
B44: ふりかけ | K44: 鉄 | O44: ( | P44: 1 | Q44: )回/ | R44: 週 | S44: ( | T44: 3 | U44: )g/回 | W44: ( | X44: 3mg | Y44: )/回

Sheet 表（紙提出用）
A1: 特定給食施設栄養管理報告書 （老人福祉施設等） ( 年 月分）
A2: 施 設 名 | O2: 設 置 者 （職・氏名）
A3: 郵便番号 所 在 地 | O3: 給食責任者（職・氏名）
A4: 電話番号 FAX番号 e-mail | O4: 作 成 者 （職・氏名）
O5: 連絡先 電話番号：
A7: 【施設種別】 | D7: 1.老人福祉施設（特別養護老人ホーム除く） | N7: 委 託 業 者 | O7: 名 称
D8: 2.社会福祉施設（入所 ・ 通所） | O8: 代 表 者
D9: 3.有料老人ホーム | O9: 所 在 地
A10: 給食従事者数（人） | F10: 施 設 | J10: 委託業者
F11: 常 勤 | H11: 常勤以外 | J11: 常 勤 | L11: 常勤以外 | O11: 電話番号
B12: 管理栄養士 | N12: 【給食管理等について検討する会議】 | W12: 1.有（ 回／年） 2.無
B13: 栄 養 士 | N13: 構成職種 | Q13: 施 設 | S13: 施設長・管理栄養士・栄養士・保健師・看護師 介護支援専門員・事務職・調理師（員）・その他 ( )
B14: 調 理 師 | Q14: 委託業者 | S14: 管理栄養士・栄養士・調理師（員）・事務職・その他（ ）
B15: 調 理 員 | R15: 朝食 | T15: 昼食 | V15: 夕食 | X15: 間食 | Z15: その他 | AC15: 合計
B16: そ の 他 | N16: 食 数
B17: 合 計 | N17: 食 材 料 費 （円／人)
A18: 【施設外調理】 | F18: 1.有 2.無 （内容 ） | N18: 身体活動レベル・年齢区分・性別人数
N19: 身体活動レベル | R19: 18～29歳 | T19: 30～49歳 | W19: 50～64歳 | Z19: 65～74歳 | AC19: 75歳以上
A20: 【給食利用者の把握】 1.有（ 年 月現在） 2.無 | N20: Ⅰ | P20: 男性
A21: 身 体 の 状 況 | H21: 献 立 へ の 配 慮 | P21: 女性
A22: 1.体格 | C22: 肥満 | G22: ％ | H22: 1.有（ ） 2.無 | N22: Ⅱ | P22: 男性
C23: やせ | G23: ％ | H23: 1.有（ ） 2.無 | P23: 女性
A24: 2. 高 血 圧 | G24: ％ | H24: 1.有（ ） 2.無 | N24: Ⅲ | P24: 男性
A25: 3. 脂質異常症 | G25: ％ | H25: 1.有（ ） 2.無 | P25: 女性
A26: 4. 高 血 糖 | G26: ％ | H26: 1.有（ ） 2.無 | N26: 合 計
A27: 【食事の種類】 | E27: 常食 ・ 軟食 ・ その他（ ）
A28: 【献立の提示】 | E28: 1.有 ( 献立表 ･ 展示〔 実物 ･ 写真 〕 ・ その他〔 〕 ） 2.無
A29: 【栄養成分表示】 | E29: 1.エネルギー 2.たんぱく質 3.脂質 4.炭水化物 5.食塩相当量 6.（ ） 7.無
A30: 【喫 食 調 査】 | E30: 1.嗜好調査 （ アンケート ・ ) 2.残食調査（ 個別 ・ 集団 ） 3.無
A31: 【栄養情報の提供】 | F31: 1.ポスター 2.卓上メモ 3.献立表などに一口メモ 4.ポップ 5.（ ） 6.無
A32: 【栄養マネジメント 強化加算】 | F32: 有 ・ 無 | I32: 【経口移行加算】 | M32: 有 ・ 無 | P32: 【経口維持加算】 | T32: Ⅰ・Ⅱ・無 | X32: 【療養食加算】 | AB32: 有 ・ 無
A33: 栄養指導 | B33: 個別指導 | E33: 内容 | J33: 集団指導 | N33: 内容 | P33: 生活習慣病（肥満・高血圧・脂質異常症・高血糖）・（ ）
B34: 人 | J34: 回 人 | N34: 方法 | P34: 講話 ・ ビデオ
A35: 【非常時危機管理対策】 （食関連） | F35: 食中毒マニュアルの整備 | K35: 1.有 2.無 | N35: 災害時マニュアルの整備 | S35: 1.有 2.無 | W35: 施 設 間 連 携 | AB35: 1.有 2.無
F36: 食品等の備蓄 | K36: 1.有 ( 日分） 2.無
A37: 【栄養管理における課題】 | P37: 【課題に対する改善策、工夫事項】
Y40: (R3.3）

Sheet 裏（紙提出用）
A2: ※1 | B2: 男性 歳 女性 歳 | O2: 食 品 群 | X2: 目標量（ｇ） | AA2: 給与量（ｇ）
A3: ※2 | B3: １人（ 朝食 ・ 昼食 ・ 夕食 ・ ）当たり | O3: 穀類 | R3: 米
A4: ※3 | B4: 下記以外に食事基準の設定がある食事 | R4: パ ン 類
B5: （ 種類） | R5: め ん 類
R6: その他の穀類
A7: 【基準設定】 | G7: （ 年 月 ） | O7: いも及び でん粉類 | R7: い も
A8: 【栄養価計算の基準】 | G8: 八訂 | K8: 七訂 | R8: いも加工品
A9: 栄 養 素 等 | E9: （単位） | G9: 給与栄養目標量 | K9: 給与栄養量 | O9: 砂糖 及び 甘味類
A10: エネルギー | E10: (kcal) | O10: 豆類 | R10: 大豆製品
R11: 大豆、その他の豆類
A12: たんぱく質 | E12: (g) | O12: 種 実 類
O13: 野菜類 | R13: 緑黄色野菜
A14: 脂 質 | E14: (g) | R14: その他の野菜
R15: 野菜漬物
A16: カルシウム | E16: (mg) | O16: 果実類 | R16: 果 実
R17: 果実加工品
A18: 鉄 | E18: (mg) | O18: き の こ 類
O19: 藻 類
A20: ビタミン A （レチノール活性当量） | E20: (μgRAE) | O20: 魚介類 | R20: 魚 介 類 （生）
R21: 干物、塩蔵、缶詰
A22: ビタミン B1 | E22: (mg) | R22: 練 製 品
O23: 肉類 | R23: 肉 類 （生）
A24: ビタミン B2 | E24: (mg) | R24: 肉加工品
O25: 卵 類
A26: ビタミン C | E26: (mg) | O26: 乳類 | R26: 牛 乳
R27: 乳 製 品
A28: 食物繊維 | E28: (g) | O28: 油脂類 | R28: 植 物 性
R29: 動 物 性
A30: 食塩相当量 | E30: (g) | O30: 調味料 及び 香辛料類 | R30: 食 塩
R31: しょうゆ
A32: エネルギー 産生栄養素 バランス （%ｴﾈﾙｷﾞｰ） | D32: たんぱく質 | R32: み そ
R33: その他の調味料
D34: 脂 質 | O34: 調理済み流通食品類
D36: 炭水化物 | O36: 合 計
A39: 上 記 の 食 種 に お け る 栄 養 補 助 食 品 等 の 使 用 状 況
A40: 栄養補助食品等の名称 | K40: 栄養素名 | Q40: 使用回数 | V40: 使用量 | Z40: 給与量（単位）
Q41: 回/週・日 | X41: ｇ/回 | AB41: （ ）/回
Q42: 回/週・日 | X42: ｇ/回 | AB42: （ ）/回
Q43: 回/週・日 | X43: ｇ/回 | AB43: （ ）/回

Sheet 記入要領
